fUSD/lending_fUSD_20240714
["ID","MTS","AMOUNT","RATE_DAILY","PERIOD"]
[332025792,1720937450200,-500.0,0.00013698,2]
[332025793,1720937450212,-500.0,0.00013698,2]
[332025794,1720937450222,-500.0,0.00013698,2]
[332025795,1720937450233,-500.0,0.00013698,2]
[332025796,1720937450242,-500.0,0.00013698,2]
[332025797,1720937450252,-500.0,0.00013698,2]
[332025798,1720937450263,-500.0,0.00013698,2]
[332025800,1720937450272,-500.0,0.00013698,2]
[332025803,1720937450285,-500.0,0.00013698,2]
[332025804,1720937450296,-817.84,0.00013698,2]
[332025806,1720937450305,-500.0,0.00013698,2]
[332025809,1720937450316,-503.14224535,0.00013698,2]
[332025811,1720937450327,-500.0,0.00013698,2]
[332025813,1720937450338,-500.0,0.00013698,2]
[332025815,1720937450348,-500.0,0.00013698,2]
[332025817,1720937450358,-500.0,0.00013698,2]
[332025819,1720937450368,-500.0,0.00013698,2]
[332025821,1720937450378,-500.0,0.00013698,2]
[332025823,1720937450389,-1131.94,0.00013698,2]
[332025825,1720937450400,-500.0,0.00013698,2]
[332025827,1720937450410,-500.0,0.00013698,2]
[332025829,1720937450421,-131.84481204,0.00013698,2]
[332025833,1720937450450,-368.15518796,0.00013698,2]
[332025835,1720937450461,-500.0,0.00013698,2]
[332025837,1720937450475,-500.0,0.00013698,2]
[332025839,1720937450485,-500.0,0.00013698,2]
[332025841,1720937450495,-500.0,0.00013698,2]
[332025869,1720937450764,-500.0,0.00013698,2]
[332025871,1720937450774,-625.19,0.00013698,2]
[332025873,1720937450784,-500.0,0.00013698,2]
[332025875,1720937450793,-500.0,0.00013698,2]
[332025877,1720937450803,-734.81,0.00013698,2]
[332025879,1720937450814,-500.0,0.00013698,2]
[332025881,1720937450824,-500.0,0.00013698,2]
[332025883,1720937450833,-500.0,0.00013698,2]
[332025885,1720937450843,-500.0,0.00013698,2]
[332025887,1720937450852,-500.0,0.00013698,2]
[332025889,1720937450862,-500.0,0.00013698,2]
[332025891,1720937450873,-965.46,0.00013698,2]
[332025893,1720937450883,-500.0,0.00013698,2]
[332025895,1720937450894,-500.0,0.00013698,2]
[332025898,1720937450905,-500.0,0.00013698,2]
[332025900,1720937450916,-725.07,0.00013698,2]
[332025902,1720937450927,-500.0,0.00013698,2]
[332025904,1720937450937,-500.0,0.00013698,2]
[332025906,1720937450946,-500.0,0.00013698,2]
[332025908,1720937450956,-500.0,0.00013698,2]
[332025910,1720937450965,-500.0,0.00013698,2]
[332025912,1720937450975,-500.0,0.00013698,2]
[332025914,1720937450985,-500.0,0.00013698,2]
[332025916,1720937450995,-500.0,0.00013698,2]
[332025918,1720937451004,-500.0,0.00013698,2]
[332025920,1720937451014,-500.0,0.00013698,2]
[332025922,1720937451025,-500.0,0.00013698,2]
[332025924,1720937451035,-500.0,0.00013698,2]
[332025926,1720937451045,-529.82,0.00013698,2]
[332025928,1720937451055,-500.0,0.00013698,2]
[332025930,1720937451064,-500.0,0.00013698,2]
[332025932,1720937451074,-500.0,0.00013698,2]
[332025934,1720937451084,-500.0,0.00013698,2]
[332025936,1720937451094,-500.0,0.00013698,2]
[332025937,1720937451103,-500.0,0.00013698,2]
[332025939,1720937451113,-500.0,0.00013698,2]
[332025941,1720937451123,-500.0,0.00013698,2]
[332025943,1720937451132,-589.81,0.00013698,2]
[332025945,1720937451142,-500.0,0.00013698,2]
[332025947,1720937451152,-500.0,0.00013698,2]
[332025949,1720937451161,-500.0,0.00013698,2]
[332025951,1720937451171,-616.27,0.00013698,2]
[332025953,1720937451181,-500.0,0.00013698,2]
[332025955,1720937451191,-500.0,0.00013698,2]
[332025957,1720937451200,-500.0,0.00013698,2]
[332025959,1720937451211,-1076.68,0.00013698,2]
[332025960,1720937451220,-500.0,0.00013698,2]
[332025962,1720937451230,-500.0,0.00013698,2]
[332025964,1720937451240,-500.0,0.00013698,2]
[332025966,1720937451251,-500.0,0.00013698,2]
[332025968,1720937451260,-500.0,0.00013698,2]
[332025970,1720937451270,-649.45,0.00013698,2]
[332025972,1720937451279,-500.0,0.00013698,2]
[332025974,1720937451289,-500.0,0.00013698,2]
[332025976,1720937451299,-500.0,0.00013698,2]
[332025977,1720937451309,-597.83015121,0.00013698,2]
[332025978,1720937451318,-500.0,0.00013698,2]
[332025979,1720937451328,-500.0,0.00013698,2]
[332025980,1720937451338,-500.0,0.00013698,2]
[332025981,1720937451347,-500.0,0.00013698,2]
[332025982,1720937451358,-500.0,0.00013698,2]
[332025984,1720937451368,-545.33,0.00013698,2]
[332025986,1720937451377,-500.0,0.00013698,2]
[332025988,1720937451387,-500.0,0.00013698,2]
[332025990,1720937451397,-1219.43,0.00013698,2]
[332025992,1720937451406,-500.0,0.00013698,2]
[332025994,1720937451416,-500.0,0.00013698,2]
[332025996,1720937451426,-500.0,0.00013698,2]
[332025998,1720937451436,-500.0,0.00013698,2]
[332026000,1720937451446,-500.0,0.00013698,2]
[332026002,1720937451456,-541.9,0.00013698,2]
[332026004,1720937451467,-500.0,0.00013698,2]
[332026006,1720937451478,-500.0,0.00013698,2]
[332026008,1720937451487,-500.0,0.00013698,2]
[332026010,1720937451496,-500.0,0.00013698,2]
[332026012,1720937451507,-329.49660637,0.00013698,2]
[332026014,1720937451517,-415.01032719,0.00013698,2]
[332026016,1720937451526,-500.0,0.00013698,2]
[332026018,1720937451536,-268.90474856,0.00013698,2]
[332026020,1720937451547,-500.0,0.00013698,2]
[332026022,1720937451556,-500.0,0.00013698,2]
[332026024,1720937451566,-500.0,0.00013698,2]
[332026025,1720937451575,-500.0,0.00013698,2]
[332026027,1720937451586,-500.0,0.00013698,2]
[332026029,1720937451595,-509.51,0.00013698,2]
[332026031,1720937451605,-500.0,0.00013698,2]
[332026033,1720937451615,-500.0,0.00013698,2]
[332026035,1720937451624,-739.79,0.00013698,2]
[332026037,1720937451634,-500.0,0.00013698,2]
[332026039,1720937451643,-500.0,0.00013698,2]
[332026041,1720937451653,-500.0,0.00013698,2]
[332026043,1720937451663,-507.49,0.00013698,2]
[332026045,1720937451674,-500.0,0.00013698,2]
[332026047,1720937451684,-500.0,0.00013698,2]
[332026049,1720937451694,-500.0,0.00013698,2]
[332026051,1720937451703,-500.0,0.00013698,2]
[332026053,1720937451712,-500.0,0.00013698,2]
[332026055,1720937451722,-500.0,0.00013698,2]
[332026057,1720937451732,-500.0,0.00013698,2]
[332026058,1720937451741,-500.0,0.00013698,2]
[332026060,1720937451751,-621.26,0.00013698,2]
[332026062,1720937451761,-500.0,0.00013698,2]
[332026064,1720937451771,-500.0,0.00013698,2]
[332026066,1720937451781,-500.0,0.00013698,2]
[332026068,1720937451790,-500.0,0.00013698,2]
[332026070,1720937451800,-500.0,0.00013698,2]
[332026072,1720937451810,-807.61,0.00013698,2]
[332026074,1720937451820,-911.66,0.00013698,2]
[332026076,1720937451829,-500.0,0.00013698,2]
[332026078,1720937451839,-500.0,0.00013698,2]
[332026080,1720937451849,-500.0,0.00013698,2]
[332026082,1720937451858,-499.98508031,0.00013698,2]
[332026084,1720937451868,-500.0,0.00013698,2]
[332026086,1720937451878,-500.0,0.00013698,2]
[332026088,1720937451888,-500.0,0.00013698,2]
[332026090,1720937451897,-500.0,0.00013698,2]
[332026092,1720937451907,-500.0,0.00013698,2]
[332026094,1720937451916,-500.0,0.00013698,2]
[332026096,1720937451926,-628.38,0.00013698,2]
[332026098,1720937451936,-500.0,0.00013698,2]
[332026100,1720937451946,-500.0,0.00013698,2]
[332026102,1720937451956,-500.0,0.00013698,2]
[332026104,1720937451966,-500.0,0.00013698,2]
[332026106,1720937451976,-500.0,0.00013698,2]
[332026108,1720937451985,-500.0,0.00013698,2]
[332026110,1720937451995,-974.77,0.00013698,2]
[332026112,1720937452004,-500.0,0.00013698,2]
[332026114,1720937452014,-500.0,0.00013698,2]
[332026116,1720937452023,-500.0,0.00013698,2]
[332026118,1720937452033,-500.0,0.00013698,2]
[332026120,1720937452043,-519.05,0.00013698,2]
[332026122,1720937452053,-500.0,0.00013698,2]
[332026124,1720937452062,-500.0,0.00013698,2]
[332026126,1720937452072,-729.53,0.00013698,2]
[332026128,1720937452082,-500.0,0.00013698,2]
[332026130,1720937452091,-500.0,0.00013698,2]
[332026131,1720937452101,-500.0,0.00013698,2]
[332026133,1720937452110,-693.93,0.00013698,2]
[332026135,1720937452120,-500.0,0.00013698,2]
[332026138,1720937452129,-501.37,0.00013698,2]
[332026140,1720937452140,-500.0,0.00013698,2]
[332026142,1720937452150,-500.0,0.00013698,2]
[332026144,1720937452160,-500.0,0.00013698,2]
[332026146,1720937452170,-500.0,0.00013698,2]
[332026148,1720937452180,-500.0,0.00013698,2]
[332026150,1720937452189,-500.0,0.00013698,2]
[332026152,1720937452199,-56.66049839,0.00013698,2]
[332026158,1720937452248,-458.15448876,0.00013698,2]
[332026687,1720937545637,500.0,0.00011012,2]
[332026688,1720937572895,500.0,0.00011012,2]
[332026689,1720937573589,526.99233881,0.00011012,2]
[332026690,1720937573699,500.0,0.00011012,2]
[332026691,1720937701938,244.82810964,0.00012314,2]
[332026692,1720937720181,9117.23,0.00025,60]
[332026695,1720937750154,414.02655178,0.00012314,2]
[332026697,1720937782480,39.8160576,0.00010644,2]
[332026700,1720938180145,-314.3739424,0.00010644,2]
[332026709,1720938321102,336.48,0.00010186,2]
[332026710,1720938322297,160.27755314,0.00010998,2]
[332026754,1720938633177,-300.0,0.00011012,2]
[332026755,1720938633187,-274.25050338,0.00011098,2]
[332026756,1720938633199,-301.44481704,0.00011098,2]
[332026757,1720938633243,-1566.78992468,0.00011098,2]
[332026758,1720938633254,-599.34112366,0.00011098,2]
[332026759,1720938633264,-473.69615946,0.00011098,2]
[332026760,1720938633274,-322.60558736,0.00011098,2]
[332026761,1720938633284,-220.9155467,0.00011098,2]
[332026762,1720938633294,-155.0,0.00011098,2]
[332026763,1720938633304,-157.68812791,0.00011098,2]
[332026764,1720938633314,-155.49275436,0.00011098,2]
[332026765,1720938633323,-209.3225107,0.00011098,2]
[332026766,1720938633334,-188.46892234,0.00011098,2]
[332026767,1720938633343,-273.16853919,0.00011098,2]
[332026768,1720938633630,-155.0,0.00011098,2]
[332026769,1720938633640,-3078.11553019,0.00011098,2]
[332026770,1720938633650,-206.55492166,0.00011098,2]
[332026771,1720938633660,-442.0801165,0.00011098,2]
[332026772,1720938633669,-242.5499319,0.00011098,2]
[332026773,1720938633679,-20201.21030338,0.00011688,2]
[332026774,1720938634678,25688.86850446,0.00010998,2]
[332026777,1720938637844,-6234.20000001,0.00010998,2]
[332026778,1720938637975,-12912.82205891,0.00010998,2]
[332026779,1720938637986,-1021.11529234,0.00010998,2]
[332026928,1720938639668,-3409.35458618,0.00010998,2]
[332026930,1720938639681,-436.27599967,0.00010998,2]
[332027303,1720938643377,-822.66,0.00010998,2]
[332027307,1720938643409,-1528.63508601,0.00010998,2]
[332027309,1720938643420,-1233.59744537,0.00010998,2]
[332027313,1720938643454,-182651.32111911,0.00010998,2]
[332027316,1720938643473,-2587.69969662,0.00011688,2]
[332027318,1720938643483,-232.547553,0.00011866,2]
[332027320,1720938643493,-167.09,0.00011926,2]
[332027322,1720938643503,-600.0,0.00011931,2]
[332027324,1720938643512,-227.45,0.00011994,2]
[332027326,1720938643521,-566.64,0.00012025,2]
[332027328,1720938643531,-727.91,0.00012072,2]
[332027330,1720938643541,-150.0,0.00012104,2]
[332027332,1720938643550,-250.0,0.00012147,2]
[332027334,1720938643559,-199.81,0.00012148,2]
[332027336,1720938643569,-250.0,0.00012161,2]
[332027338,1720938643578,-499.99,0.00012161,2]
[332027340,1720938643587,-3448.26,0.00012186,2]
[332027342,1720938643596,-150.99,0.00012193,2]
[332027344,1720938643606,-1170.77,0.00012238,2]
[332027346,1720938643615,-447.06,0.00012273,2]
[332027347,1720938643624,-155.1098124,0.00012273,2]
[332027349,1720938643633,-320.59199357,0.00012273,2]
[332027351,1720938643643,-171.98,0.00012294,2]
[332027353,1720938643652,-400.0,0.00012332,2]
[332027354,1720938643663,-336.48,0.0001245,2]
[332027355,1720938643672,-165.08,0.00012494,2]
[332027356,1720938643682,-167.47,0.00012591,2]
[332027357,1720938643691,-400.0,0.000129,4]
[332027358,1720938643700,-1250.0,0.00013,2]
[332027359,1720938643709,-900.0,0.00013,4]
[332027360,1720938643718,-1400.0,0.000131,4]
[332027361,1720938643728,-8166.0,0.00013158,2]
[332027363,1720938643737,-150.0,0.00013178,2]
[332027365,1720938643746,-300.0,0.00013178,2]
[332027367,1720938643755,-330.1,0.00013178,2]
[332027369,1720938643764,-300.0,0.00013178,2]
[332027371,1720938643773,-973.2,0.00013178,2]
[332027373,1720938643783,-710.5,0.00013178,2]
[332027375,1720938643792,-1900.0,0.000132,4]
[332027377,1720938643801,-300.0,0.000133,2]
[332027379,1720938643810,-2400.0,0.000133,4]
[332027381,1720938643819,-554.29766878,0.00013331,2]
[332027383,1720938643828,-400.0,0.000134,4]
[332027385,1720938643840,-600.0,0.00013423,2]
[332027387,1720938643849,-1322.77749777,0.00013472,2]
[332027389,1720938643859,-400.0,0.000135,4]
[332027391,1720938643869,-220.67,0.00013589,3]
[332027393,1720938643879,-321.00875716,0.00013598,2]
[332027395,1720938643888,-1000.0,0.00013598,2]
[332027397,1720938643899,-400.0,0.000136,4]
[332027399,1720938643911,-1000.0,0.0001364,2]
[332027401,1720938643923,-1000.0,0.0001364,2]
[332027403,1720938643934,-1000.0,0.0001364,2]
[332027405,1720938643944,-1000.0,0.0001364,2]
[332027407,1720938643953,-1006.0,0.0001365,2]
[332027409,1720938643963,-1000.0,0.0001365,2]
[332027411,1720938643973,-1000.0,0.0001365,2]
[332027413,1720938643983,-1000.0,0.0001365,2]
[332027415,1720938643992,-1000.0,0.0001367,3]
[332027417,1720938644003,-1000.0,0.0001367,3]
[332027420,1720938644014,-1000.0,0.0001367,3]
[332027422,1720938644023,-196.78351634,0.00013676,2]
[332027424,1720938644033,-1000.0,0.0001368,3]
[332027426,1720938644042,-1000.0,0.0001368,3]
[332027428,1720938644051,-1000.0,0.0001368,3]
[332027430,1720938644060,-500.0,0.00013698,2]
[332027432,1720938644071,-500.0,0.00013698,2]
[332027434,1720938644080,-500.0,0.00013698,2]
[332027436,1720938644090,-500.0,0.00013698,2]
[332027438,1720938644100,-500.0,0.00013698,2]
[332027440,1720938644109,-500.0,0.00013698,2]
[332027442,1720938644118,-500.0,0.00013698,2]
[332027444,1720938644128,-500.0,0.00013698,2]
[332027446,1720938644138,-500.0,0.00013698,2]
[332027448,1720938644147,-500.0,0.00013698,2]
[332027449,1720938644158,-500.0,0.00013698,2]
[332027452,1720938644167,-500.0,0.00013698,2]
[332027454,1720938644177,-556.91812711,0.00013698,2]
[332027456,1720938644187,-500.0,0.00013698,2]
[332027457,1720938644196,-500.0,0.00013698,2]
[332027459,1720938644207,-200.0,0.00013698,2]
[332027462,1720938644218,-500.0,0.00013698,2]
[332027463,1720938644227,-500.0,0.00013698,2]
[332027465,1720938644236,-500.0,0.00013698,2]
[332027467,1720938644246,-500.0,0.00013698,2]
[332027469,1720938644255,-500.0,0.00013698,2]
[332027471,1720938644264,-500.0,0.00013698,2]
[332027473,1720938644274,-500.0,0.00013698,2]
[332027475,1720938644283,-395.5170903,0.00013698,2]
[332027477,1720938644292,-500.0,0.00013698,2]
[332027479,1720938644302,-500.0,0.00013698,2]
[332027481,1720938644312,-500.0,0.00013698,2]
[332027483,1720938644322,-500.0,0.00013698,2]
[332027485,1720938644331,-500.0,0.00013698,2]
[332027487,1720938644342,-200.0,0.00013698,2]
[332027489,1720938644352,-500.0,0.00013698,2]
[332027491,1720938644361,-500.0,0.00013698,2]
[332027493,1720938644370,-500.0,0.00013698,2]
[332027495,1720938644379,-500.0,0.00013698,2]
[332027497,1720938644388,-562.91,0.00013698,2]
[332027499,1720938644397,-500.0,0.00013698,2]
[332027500,1720938644408,-500.0,0.00013698,2]
[332027502,1720938644417,-500.0,0.00013698,2]
[332027505,1720938644427,-500.0,0.00013698,2]
[332027507,1720938644436,-500.0,0.00013698,2]
[332027508,1720938644445,-500.0,0.00013698,2]
[332027510,1720938644455,-796.96,0.00013698,2]
[332027512,1720938644464,-619.87935413,0.00013698,2]
[332027514,1720938644474,-214.47998084,0.00013698,2]
[332027516,1720938644484,-500.0,0.00013698,2]
[332027518,1720938644494,-500.0,0.00013698,2]
[332027520,1720938644503,-596.74,0.00013698,2]
[332027522,1720938644512,-793.79,0.00013698,2]
[332027524,1720938644522,-500.0,0.00013698,2]
[332027526,1720938644532,-500.0,0.00013698,2]
[332027528,1720938644542,-500.0,0.00013698,2]
[332027530,1720938644551,-224.1671224,0.00013698,2]
[332027532,1720938644560,-500.0,0.00013698,2]
[332027534,1720938644570,-564.45286772,0.00013698,2]
[332027536,1720938644579,-500.0,0.00013698,2]
[332027538,1720938644589,-500.0,0.00013698,2]
[332027539,1720938644599,-500.0,0.00013698,2]
[332027541,1720938644608,-500.0,0.00013698,2]
[332027543,1720938644617,-500.0,0.00013698,2]
[332027545,1720938644627,-500.0,0.00013698,2]
[332027547,1720938644637,-556.24,0.00013698,2]
[332027549,1720938644647,-500.0,0.00013698,2]
[332027551,1720938644657,-500.0,0.00013698,2]
[332027553,1720938644667,-500.0,0.00013698,2]
[332027555,1720938644677,-500.0,0.00013698,2]
[332027557,1720938644687,-509.46955422,0.00013698,2]
[332027559,1720938644696,-500.0,0.00013698,2]
[332027561,1720938644705,-500.0,0.00013698,2]
[332027563,1720938644715,-500.0,0.00013698,2]
[332027565,1720938644724,-500.0,0.00013698,2]
[332027567,1720938644734,-500.0,0.00013698,2]
[332027569,1720938644744,-500.0,0.00013698,2]
[332027571,1720938644753,-500.0,0.00013698,2]
[332027573,1720938644763,-500.0,0.00013698,2]
[332027575,1720938644773,-500.0,0.00013698,2]
[332027577,1720938644783,-500.0,0.00013698,2]
[332027579,1720938644792,-500.0,0.00013698,2]
[332027581,1720938644802,-500.0,0.00013698,2]
[332027583,1720938644811,-500.0,0.00013698,2]
[332027585,1720938644821,-500.0,0.00013698,2]
[332027587,1720938644830,-500.0,0.00013698,2]
[332027589,1720938644843,-500.0,0.00013698,2]
[332027591,1720938644853,-500.0,0.00013698,2]
[332027593,1720938644862,-500.0,0.00013698,2]
[332027595,1720938644872,-500.0,0.00013698,2]
[332027597,1720938644882,-543.93641365,0.00013698,2]
[332027599,1720938644892,-322.69771707,0.00013698,2]
[332027601,1720938644902,-500.0,0.00013698,2]
[332027603,1720938644912,-500.0,0.00013698,2]
[332027605,1720938644923,-500.0,0.00013698,2]
[332027607,1720938644933,-500.0,0.00013698,2]
[332027608,1720938644942,-500.0,0.00013698,2]
[332027610,1720938644952,-500.0,0.00013698,2]
[332027612,1720938644962,-500.0,0.00013698,2]
[332027614,1720938644971,-500.0,0.00013698,2]
[332027616,1720938644981,-500.0,0.00013698,2]
[332027618,1720938644991,-500.0,0.00013698,2]
[332027620,1720938645000,-500.0,0.00013698,2]
[332027639,1720938645243,-500.0,0.00013698,2]
[332027641,1720938645253,-500.0,0.00013698,2]
[332027643,1720938645263,-500.0,0.00013698,2]
[332027645,1720938645273,-500.0,0.00013698,2]
[332027647,1720938645283,-500.0,0.00013698,2]
[332027649,1720938645293,-538.96,0.00013698,2]
[332027651,1720938645303,-500.0,0.00013698,2]
[332027653,1720938645313,-500.0,0.00013698,2]
[332027655,1720938645322,-500.0,0.00013698,2]
[332027657,1720938645332,-500.0,0.00013698,2]
[332027659,1720938645341,-500.0,0.00013698,2]
[332027661,1720938645351,-500.0,0.00013698,2]
[332027664,1720938645361,-500.0,0.00013698,2]
[332027667,1720938645370,-500.0,0.00013698,2]
[332027670,1720938645382,-500.0,0.00013698,2]
[332027672,1720938645392,-500.0,0.00013698,2]
[332027674,1720938645402,-500.0,0.00013698,2]
[332027676,1720938645412,-500.0,0.00013698,2]
[332027678,1720938645421,-500.0,0.00013698,2]
[332027680,1720938645431,-500.0,0.00013698,2]
[332027682,1720938645440,-500.0,0.00013698,2]
[332027684,1720938645450,-500.0,0.00013698,2]
[332027686,1720938645459,-500.0,0.00013698,2]
[332027688,1720938645468,-500.0,0.00013698,2]
[332027690,1720938645478,-500.0,0.00013698,2]
[332027692,1720938645488,-500.0,0.00013698,2]
[332027694,1720938645498,-500.0,0.00013698,2]
[332027696,1720938645508,-500.0,0.00013698,2]
[332027698,1720938645517,-500.0,0.00013698,2]
[332027700,1720938645527,-737.39,0.00013698,2]
[332027702,1720938645536,-500.0,0.00013698,2]
[332027704,1720938645546,-500.0,0.00013698,2]
[332027706,1720938645555,-500.0,0.00013698,2]
[332027708,1720938645564,-500.0,0.00013698,2]
[332027710,1720938645573,-500.0,0.00013698,2]
[332027712,1720938645583,-500.0,0.00013698,2]
[332027714,1720938645592,-500.0,0.00013698,2]
[332027716,1720938645602,-500.0,0.00013698,2]
[332027718,1720938645611,-500.0,0.00013698,2]
[332027720,1720938645621,-500.0,0.00013698,2]
[332027722,1720938645631,-500.0,0.00013698,2]
[332027724,1720938645641,-602.04584165,0.00013698,2]
[332027726,1720938645650,-500.0,0.00013698,2]
[332027728,1720938645659,-500.0,0.00013698,2]
[332027730,1720938645669,-500.0,0.00013698,2]
[332027733,1720938645678,-500.0,0.00013698,2]
[332027735,1720938645688,-500.0,0.00013698,2]
[332027737,1720938645697,-500.0,0.00013698,2]
[332027739,1720938645708,-500.0,0.00013698,2]
[332027741,1720938645717,-568.66,0.00013698,2]
[332027742,1720938645727,-500.0,0.00013698,2]
[332027745,1720938645737,-500.0,0.00013698,2]
[332027746,1720938645747,-500.0,0.00013698,2]
[332027748,1720938645756,-500.0,0.00013698,2]
[332027751,1720938645766,-500.0,0.00013698,2]
[332027753,1720938645775,-500.0,0.00013698,2]
[332027755,1720938645784,-500.0,0.00013698,2]
[332027757,1720938645793,-500.0,0.00013698,2]
[332027758,1720938645802,-500.0,0.00013698,2]
[332027761,1720938645813,-500.0,0.00013698,2]
[332027763,1720938645823,-500.0,0.00013698,2]
[332027765,1720938645833,-500.0,0.00013698,2]
[332027767,1720938645846,-500.0,0.00013698,2]
[332027769,1720938645858,-500.0,0.00013698,2]
[332027771,1720938645868,-504.13490115,0.00013698,2]
[332027773,1720938645879,-500.0,0.00013698,2]
[332027775,1720938645890,-500.0,0.00013698,2]
[332027777,1720938645899,-500.0,0.00013698,2]
[332027779,1720938645910,-500.0,0.00013698,2]
[332027781,1720938645920,-500.0,0.00013698,2]
[332027783,1720938645930,-500.0,0.00013698,2]
[332027785,1720938645941,-500.0,0.00013698,2]
[332027787,1720938645952,-271.14169144,0.00013698,2]
[332027789,1720938645962,-451.58957016,0.00013698,2]
[332027791,1720938645972,-500.0,0.00013698,2]
[332027793,1720938645981,-566.96350124,0.00013698,2]
[332027795,1720938645991,-500.0,0.00013698,2]
[332027796,1720938646000,-697.11,0.00013698,2]
[332027798,1720938646010,-500.0,0.00013698,2]
[332027800,1720938646020,-500.0,0.00013698,2]
[332027802,1720938646029,-500.0,0.00013698,2]
[332027804,1720938646040,-504.85382341,0.00013698,2]
[332027806,1720938646049,-500.0,0.00013698,2]
[332027807,1720938646059,-500.0,0.00013698,2]
[332027809,1720938646070,-666.53,0.00013698,2]
[332027811,1720938646079,-500.0,0.00013698,2]
[332027813,1720938646088,-405.7205191,0.00013698,2]
[332027815,1720938646098,-500.0,0.00013698,2]
[332027817,1720938646107,-500.0,0.00013698,2]
[332027819,1720938646116,-500.0,0.00013698,2]
[332027821,1720938646126,-500.0,0.00013698,2]
[332027823,1720938646135,-500.0,0.00013698,2]
[332027825,1720938646145,-500.0,0.00013698,2]
[332027827,1720938646154,-500.0,0.00013698,2]
[332027829,1720938646164,-500.0,0.00013698,2]
[332027831,1720938646174,-500.0,0.00013698,2]
[332027833,1720938646184,-500.0,0.00013698,2]
[332027835,1720938646193,-500.0,0.00013698,2]
[332027837,1720938646203,-500.0,0.00013698,2]
[332027839,1720938646213,-285.61624932,0.00013698,2]
[332027841,1720938646222,-504.14966801,0.00013698,2]
[332027843,1720938646232,-692.99,0.00013698,2]
[332027845,1720938646242,-500.0,0.00013698,2]
[332027847,1720938646252,-500.0,0.00013698,2]
[332027849,1720938646261,-500.0,0.00013698,2]
[332027851,1720938646271,-500.0,0.00013698,2]
[332027853,1720938646280,-500.0,0.00013698,2]
[332027855,1720938646290,-509.48798498,0.00013698,2]
[332027857,1720938646299,-500.0,0.00013698,2]
[332027859,1720938646309,-500.0,0.00013698,2]
[332027861,1720938646318,-500.0,0.00013698,2]
[332027863,1720938646328,-522.4,0.00013698,2]
[332027865,1720938646338,-500.0,0.00013698,2]
[332027867,1720938646347,-500.0,0.00013698,2]
[332027869,1720938646357,-500.0,0.00013698,2]
[332027871,1720938646367,-500.0,0.00013698,2]
[332027873,1720938646377,-500.0,0.00013698,2]
[332027875,1720938646388,-500.0,0.00013698,2]
[332027877,1720938646398,-500.0,0.00013698,2]
[332027879,1720938646409,-468.7083923,0.00013698,2]
[332027881,1720938646419,-2236.22,0.00013698,2]
[332027883,1720938646429,-500.0,0.00013698,2]
[332027885,1720938646442,-641.72,0.00013698,2]
[332027887,1720938646452,-500.0,0.00013698,2]
[332027889,1720938646461,-456.81928463,0.00013698,2]